bitfinex/quotes_BTCUSD_20250714
["timestamp","ask_amount","ask_price","bid_price","bid_amount"]
[1752487127827,0.65809414,121910.0,121900.0,0.36618271]
[1752487128041,0.65809414,121910.0,121900.0,0.36614271]
[1752487128262,0.60809414,121910.0,121900.0,0.36614271]
[1752487128485,0.65809414,121910.0,121900.0,0.36614271]
[1752487128689,0.33522878,121910.0,121900.0,0.36614271]
[1752487128898,0.65809414,121910.0,121900.0,0.36614271]
[1752487129097,0.52729974,121910.0,121900.0,0.36614271]
[1752487129380,0.57729974,121910.0,121900.0,0.36614271]
[1752487129833,0.97729974,121910.0,121900.0,0.36614271]
[1752487130647,0.73522878,121910.0,121900.0,0.36614271]
[1752487130851,0.90229974,121910.0,121900.0,0.36614271]
[1752487131061,0.90229974,121910.0,121900.0,0.36744271]
[1752487131271,0.97729974,121910.0,121900.0,0.39864271]
[1752487131427,0.92729974,121910.0,121900.0,0.39864271]
[1752487131642,0.97729974,121910.0,121900.0,0.39864271]
[1752487131823,0.92729974,121910.0,121900.0,0.36744271]
[1752487132029,0.49595263,121910.0,121900.0,0.36740271]
[1752487132264,0.49595263,121910.0,121900.0,0.23540271]
[1752487132465,0.65388167,121910.0,121900.0,0.36736271]
[1752487132672,0.89595263,121910.0,121900.0,0.23540271]
[1752487132879,0.89595263,121910.0,121900.0,0.33476271]
[1752487133082,1.13802359,121910.0,121900.0,0.20280271]
[1752487133300,1.17122359,121910.0,121900.0,0.33476271]
[1752487134133,1.17122359,121910.0,121900.0,0.20280271]
[1752487134533,1.17122359,121910.0,121900.0,0.33476271]
[1752487134745,1.13802359,121910.0,121900.0,0.33476271]
[1752487135591,1.06302359,121910.0,121900.0,0.33476271]
[1752487135803,1.13802359,121910.0,121900.0,0.33476271]
[1752487136006,1.13802359,121910.0,121900.0,0.20280271]
[1752487136217,1.13802359,121910.0,121900.0,0.33476271]
[1752487136632,1.06302359,121910.0,121900.0,0.33476271]
[1752487136845,1.13802359,121910.0,121900.0,0.33476271]
[1752487137057,1.17042359,121910.0,121900.0,0.33476271]
[1752487138204,1.30234359,121910.0,121900.0,0.33476271]
[1752487138682,1.22734359,121910.0,121900.0,0.33476271]
[1752487138901,1.30234359,121910.0,121900.0,0.33476271]
[1752487139623,0.8839707,121910.0,121900.0,0.20280271]
[1752487140037,1.0158507,121910.0,121900.0,0.33468271]
[1752487141101,1.4158507,121910.0,121900.0,0.33468271]
[1752487141958,1.4158507,121910.0,121900.0,0.20280271]
[1752487144172,0.8839707,121910.0,121900.0,0.20280271]
[1752487144384,1.0157707,121910.0,121900.0,0.20280271]
[1752487144613,1.4157707,121910.0,121900.0,0.20280271]
[1752487150718,1.2839707,121910.0,121900.0,0.20280271]
[1752487151050,1.4156907,121910.0,121900.0,0.20280271]
[1752487155907,1.2839707,121910.0,121900.0,0.20280271]
[1752487156367,1.4156107,121910.0,121900.0,0.20280271]
[1752487158418,1.2839707,121910.0,121900.0,0.20280271]
[1752487158639,1.4155707,121910.0,121900.0,0.20280271]
[1752487159057,1.2839707,121910.0,121900.0,0.20280271]
[1752487159269,1.4155707,121910.0,121900.0,0.20280271]
[1752487159476,0.79982878,121910.0,121900.0,0.20280271]
[1752487159722,1.4155307,121910.0,121900.0,0.20270271]
[1752487162798,0.8839707,121910.0,121900.0,0.20270271]
[1752487163020,1.0155307,121910.0,121900.0,0.20270271]
[1752487163235,1.4155307,121910.0,121900.0,0.20270271]
[1752487163463,1.4154907,121910.0,121900.0,0.20270271]
[1752487163678,0.93134878,121910.0,121900.0,0.20270271]
[1752487163872,1.4154907,121910.0,121900.0,0.20270271]
[1752487166063,0.93134878,121910.0,121900.0,0.20270271]
[1752487166282,1.4154907,121910.0,121900.0,0.20270271]
[1752487167317,1.0154907,121910.0,121900.0,0.20270271]
[1752487167997,1.4154907,121910.0,121900.0,0.20270271]
[1752487168483,0.93134878,121910.0,121900.0,0.20270271]
[1752487168696,1.4154907,121910.0,121900.0,0.20270271]
[1752487171602,1.0154107,121910.0,121900.0,0.20270271]
[1752487172007,1.4153707,121910.0,121900.0,0.20270271]
[1752487172408,1.2089707,121910.0,121900.0,0.20270271]
[1752487172774,1.4153307,121910.0,121900.0,0.20270271]
[1752487173449,1.00969974,121910.0,121900.0,0.20270271]
[1752487173707,1.14105974,121910.0,121900.0,0.20270271]
[1752487175357,1.3831307,121910.0,121900.0,0.20270271]
[1752487176164,1.14105974,121910.0,121900.0,0.20270271]
[1752487176502,0.90229974,121910.0,121900.0,0.20270271]
[1752487176719,0.97729974,121910.0,121900.0,0.20270271]
[1752487176916,1.10861974,121910.0,121900.0,0.20270271]
[1752487177121,1.14091974,121910.0,121900.0,0.20270271]
[1752487179996,0.89884878,121910.0,121900.0,0.20270271]
[1752487180201,1.14091974,121910.0,121900.0,0.20270271]
[1752487181564,1.00959974,121910.0,121900.0,0.20270271]
[1752487181775,1.14083974,121910.0,121900.0,0.20270271]
[1752487184755,1.14075974,121910.0,121900.0,0.20270271]
[1752487185337,0.93459974,121910.0,121900.0,0.20270271]
[1752487185537,0.89868878,121910.0,121900.0,0.20270271]
[1752487185744,1.14075974,121910.0,121900.0,0.20270271]
[1752487189609,1.00959974,121910.0,121900.0,0.20270271]
[1752487189803,1.14071974,121910.0,121900.0,0.20270271]
[1752487190645,1.06571974,121910.0,121900.0,0.20270271]
[1752487190866,1.14071974,121910.0,121900.0,0.20270271]
[1752487192123,1.14067974,121910.0,121900.0,0.20270271]
[1752487192720,1.00959974,121910.0,121900.0,0.20270271]
[1752487192956,1.14063974,121910.0,121900.0,0.20270271]
[1752487193179,1.14055474,121910.0,121900.0,0.20270271]
[1752487193393,1.00951474,121910.0,121900.0,0.20270271]
[1752487193611,1.14055474,121910.0,121900.0,0.20270271]
[1752487194025,1.17125474,121910.0,121900.0,0.20270271]
[1752487194823,1.4133257,121910.0,121900.0,0.20270271]
[1752487196434,1.4132857,121910.0,121900.0,0.20270271]
[1752487196649,1.2822857,121910.0,121900.0,0.20270271]
[1752487196862,1.4132857,121910.0,121900.0,0.20270271]
[1752487199631,1.2822857,121910.0,121900.0,0.20270271]
[1752487199838,1.4132457,121910.0,121900.0,0.20270271]
[1752487201098,0.92910378,121910.0,121900.0,0.20270271]
[1752487201515,1.4132457,121910.0,121900.0,0.20270271]
[1752487202737,1.4131657,121910.0,121900.0,0.20270271]
[1752487203888,1.3824657,121910.0,121900.0,0.20270271]
[1752487205005,1.2515857,121910.0,121900.0,0.20270271]
[1752487205499,1.3824257,121910.0,121900.0,0.20270271]
[1752487206199,1.4137257,121910.0,121900.0,0.20270271]
[1752487206435,0.92958378,121910.0,121900.0,0.20270271]
[1752487206655,1.4137257,121910.0,121900.0,0.20270271]
[1752487208013,1.0137257,121910.0,121900.0,0.20270271]
[1752487209517,1.39742231,121910.0,121900.0,0.20270271]
[1752487213556,1.26658231,121910.0,121900.0,0.20270271]
[1752487213778,1.39734231,121910.0,121900.0,0.20270271]
[1752487216532,0.99730231,121910.0,121900.0,0.20270271]
[1752487216762,0.96600231,121910.0,121900.0,0.20270271]
[1752487216970,1.36600231,121910.0,121900.0,0.20270271]
[1752487218004,0.88186039,121910.0,121900.0,0.20270271]
[1752487218281,1.36600231,121910.0,121900.0,0.20270271]
[1752487219606,1.36560231,121910.0,121900.0,0.20270271]
[1752487224186,1.23488231,121910.0,121900.0,0.20270271]
[1752487224408,1.36548231,121910.0,121900.0,0.20270271]
[1752487224834,1.39798231,121910.0,121900.0,0.20270271]
[1752487227427,1.36540231,121910.0,121900.0,0.20270271]
[1752487227880,1.26788231,121910.0,121900.0,0.20270271]
[1752487228134,1.39840231,121910.0,121900.0,0.20270271]
[1752487232717,0.91426039,121910.0,121900.0,0.20270271]
[1752487232929,1.39840231,121910.0,121900.0,0.20270271]
[1752487234384,1.26788231,121910.0,121900.0,0.20270271]
[1752487234809,1.39828231,121910.0,121900.0,0.20270271]
[1752487236544,1.26788231,121910.0,121900.0,0.20270271]
[1752487236755,1.39828231,121910.0,121900.0,0.20270271]
[1752487239053,1.26788231,121910.0,121900.0,0.20270271]
[1752487239271,1.39824231,121910.0,121900.0,0.20270271]
[1752487239499,6.34824231,121910.0,121900.0,0.20270271]
[1752487241917,5.86410039,121910.0,121900.0,0.20270271]
[1752487242128,6.34824231,121910.0,121900.0,0.20270271]
[1752487244575,6.21788231,121910.0,121900.0,0.20270271]
[1752487244794,6.34816231,121910.0,121900.0,0.20270271]
[1752487245978,6.21788231,121910.0,121900.0,0.20270271]
[1752487246207,6.34812231,121910.0,121900.0,0.20270271]
[1752487251654,6.34808231,121910.0,121900.0,0.20270271]
[1752487252867,6.18308231,121910.0,121900.0,0.20270271]
[1752487253080,6.31324231,121910.0,121900.0,0.20270271]
[1752487255767,6.34624231,121910.0,121900.0,0.19830271]
[1752487256424,6.34616231,121910.0,121900.0,0.19830271]
[1752487256638,6.22497613,121910.0,121900.0,1e-08]
[1752487256856,6.20277412,121910.0,121900.0,1e-08]
[1752487257506,5.98530116,121910.0,121900.0,1e-08]
[1752487258439,5.85522116,121910.0,121900.0,1e-08]
[1752487258678,6.25522116,121910.0,121900.0,1e-08]
[1752487258894,6.38530116,121910.0,121900.0,1e-08]
[1752487261135,6.37076031,121910.0,121900.0,1e-08]
[1752487261555,5.88657839,121910.0,121900.0,1e-08]
[1752487261773,6.37072031,121910.0,121900.0,1e-08]
[1752487262405,6.24068031,121910.0,121900.0,1e-08]
[1752487262617,5.62060935,121910.0,121900.0,1e-08]
[1752487262827,5.26844039,121910.0,121900.0,1e-08]
[1752487263047,5.55916424,121910.0,121900.0,1e-08]
[1752487263250,5.35416424,121910.0,121900.0,1e-08]
[1752487263452,5.42916424,121910.0,121900.0,1e-08]
[1752487264078,5.18709328,121910.0,121900.0,1e-08]
[1752487264327,5.42916424,121910.0,121900.0,1e-08]
[1752487266817,5.82916424,121910.0,121900.0,1e-08]
[1752487267045,5.58709328,121910.0,121900.0,1e-08]
[1752487267270,5.75416424,121910.0,121900.0,1e-08]
[1752487267489,5.82916424,121910.0,121900.0,1e-08]
[1752487267694,5.75416424,121910.0,121900.0,1e-08]
[1752487267912,5.82916424,121910.0,121900.0,1e-08]
[1752487271305,6.0712352,121910.0,121900.0,0.12992001]
[1752487272582,5.58709328,121910.0,121900.0,0.12992001]
[1752487272789,6.1041352,121910.0,121900.0,0.12992001]
[1752487275007,5.61999328,121910.0,121900.0,0.12992001]
[1752487275237,6.1041352,121910.0,121900.0,0.12992001]
[1752487276366,5.61999328,121910.0,121900.0,0.12992001]
[1752487276583,6.1041352,121910.0,121900.0,0.12992001]
[1752487276803,6.1041352,121910.0,121900.0,1e-08]
[1752487277066,6.2339752,121910.0,121900.0,1e-08]
[1752487281840,6.45765327,121910.0,121900.0,1e-08]
[1752487282084,6.18741327,121910.0,121900.0,1e-08]
[1752487282288,6.05765327,121910.0,121900.0,1e-08]
[1752487282500,6.18741327,121910.0,121900.0,1e-08]
[1752487283574,6.05765327,121910.0,121900.0,1e-08]
[1752487283786,6.18741327,121910.0,121900.0,1e-08]
[1752487283991,6.58741327,121910.0,121900.0,1e-08]
[1752487284210,6.45765327,121910.0,121900.0,1e-08]
[1752487285522,6.58741327,121910.0,121900.0,1e-08]
[1752487286880,6.18741327,121910.0,121900.0,1e-08]
[1752487291113,6.58741327,121910.0,121900.0,1e-08]
[1752487291546,6.45765327,121910.0,121900.0,1e-08]
[1752487291760,6.58729327,121910.0,121900.0,1e-08]
[1752487292537,6.34522231,121910.0,121900.0,1e-08]
[1752487293145,6.45765327,121910.0,121900.0,1e-08]
[1752487293306,6.58729327,121910.0,121900.0,1e-08]
[1752487295903,5.86108039,121910.0,121900.0,1e-08]
[1752487296165,6.58729327,121910.0,121900.0,1e-08]
[1752487298591,6.45765327,121910.0,121900.0,1e-08]
[1752487298813,5.86100039,121910.0,121900.0,1e-08]
[1752487299039,6.45765327,121910.0,121900.0,1e-08]
[1752487299258,6.58721327,121910.0,121900.0,1e-08]
[1752487300566,6.45765327,121910.0,121900.0,1e-08]
[1752487300775,5.86100039,121910.0,121900.0,1e-08]
[1752487300995,6.34514231,121910.0,121900.0,1e-08]
[1752487302655,6.44514231,121910.0,121900.0,1e-08]
[1752487306391,6.68713327,121910.0,121900.0,1e-08]
[1752487308723,6.55765327,121910.0,121900.0,1e-08]
[1752487308909,6.68709327,121910.0,121900.0,1e-08]
[1752487309401,6.55765327,121910.0,121900.0,1e-08]
[1752487309614,6.68709327,121910.0,121900.0,1e-08]
[1752487312107,0.18049012,121890.0,121880.0,1.09021686]
[1752487312368,0.78963204,121890.0,121880.0,0.96081686]
[1752487312613,0.90387915,121890.0,121880.0,0.96081686]
[1752487312840,1.03327915,121890.0,121880.0,0.96081686]
[1752487313304,1.0333302,121890.0,121880.0,0.96081686]
[1752487313546,1.0343302,121890.0,121880.0,0.96081686]
[1752487316125,1.05845867,121890.0,121880.0,0.96081686]
[1752487316574,0.92905867,121890.0,121880.0,0.96081686]
[1752487317447,1.09061867,121890.0,121880.0,1.09017686]
[1752487317912,1.05841867,121890.0,121880.0,1.09017686]
[1752487319291,1.05841867,121890.0,121880.0,0.96081686]
[1752487320230,1.0342902,121890.0,121880.0,0.96081686]
[1752487320459,0.99298809,121890.0,121880.0,0.96081686]
[1752487320692,1.71916097,121890.0,121880.0,0.96081686]
[1752487320904,1.94300147,121890.0,121880.0,0.96081686]
[1752487321323,2.07232147,121890.0,121880.0,0.96081686]
[1752487321586,1.73332147,121890.0,121880.0,0.96081686]
[1752487321818,1.36193051,121890.0,121880.0,0.96081686]
[1752487322052,1.49125051,121890.0,121880.0,0.96081686]
[1752487322737,1.49425051,121890.0,121880.0,0.96081686]
[1752487324043,0.88078859,121890.0,121880.0,0.96081686]
[1752487324259,1.60700147,121890.0,121880.0,0.96081686]
[1752487324482,1.36493051,121890.0,121880.0,0.96081686]
[1752487325098,1.49425051,121890.0,121880.0,0.96081686]
[1752487325337,1.60700147,121890.0,121880.0,0.96081686]
[1752487325580,1.01010859,121890.0,121880.0,0.96081686]
[1752487325796,1.49425051,121890.0,121880.0,0.96081686]
[1752487326435,1.01010859,121890.0,121880.0,0.96081686]
[1752487326558,1.49425051,121890.0,121880.0,0.96081686]
[1752487326764,1.36493051,121890.0,121880.0,0.96081686]
[1752487326969,1.49425051,121890.0,121880.0,0.96081686]
[1752487327191,1.49441051,121890.0,121880.0,0.96081686]
[1752487328291,1.36493051,121890.0,121880.0,0.96081686]
[1752487328508,1.49441051,121890.0,121880.0,0.96081686]
[1752487328725,1.36493051,121890.0,121880.0,0.96081686]
[1752487328945,1.49441051,121890.0,121880.0,0.96081686]
[1752487329658,0.64785955,121890.0,121880.0,0.96081686]
[1752487329883,0.66293955,121890.0,121880.0,0.96081686]
[1752487330104,0.76343924,121890.0,121880.0,0.96081686]
[1752487330529,0.44636828,121890.0,121880.0,0.96081686]
[1752487330742,0.76343924,121890.0,121880.0,0.96081686]
[1752487331096,0.84428062,121890.0,121880.0,0.96081686]
[1752487331673,0.52136828,121890.0,121880.0,0.96081686]
[1752487331936,0.84428062,121890.0,121880.0,0.96081686]
[1752487332834,0.52136828,121890.0,121880.0,0.96081686]
[1752487333065,0.84428062,121890.0,121880.0,0.96081686]
[1752487333244,0.52136828,121890.0,121880.0,0.96081686]
[1752487333452,0.87508062,121890.0,121880.0,0.96081686]
[1752487335476,0.55216828,121890.0,121880.0,0.96081686]
[1752487335658,0.87508062,121890.0,121880.0,0.96081686]
[1752487337183,0.89998843,121890.0,121880.0,0.96081686]
[1752487338502,0.77050843,121890.0,121880.0,0.96081686]
[1752487338730,0.31874508,121890.0,121880.0,1.3468292]
[1752487338945,0.31874508,121890.0,121880.0,1.31745269]
[1752487339155,0.31874508,121890.0,121880.0,1.16156165]
[1752487339385,0.31874508,121890.0,121880.0,1.33386213]
[1752487339594,0.31874508,121890.0,121880.0,1.3338622]
[1752487339801,0.31874508,121890.0,121880.0,1.16156165]
[1752487340013,0.63345364,121890.0,121880.0,1.02391686]
[1752487340425,0.63345364,121890.0,121880.0,1.15331686]
[1752487340691,0.63345364,121890.0,121880.0,1.15335686]
[1752487341122,0.63345364,121890.0,121880.0,1.02391686]
[1752487341337,0.63345364,121890.0,121880.0,1.15335686]
[1752487341541,0.63345364,121890.0,121880.0,1.02391686]
[1752487341756,0.3105413,121890.0,121880.0,1.15331686]
[1752487342001,0.63345364,121890.0,121880.0,1.15331686]
[1752487344383,0.3105413,121890.0,121880.0,1.02391686]
[1752487344603,0.63345364,121890.0,121880.0,1.15331686]
[1752487345346,0.63345364,121890.0,121880.0,0.99211686]
[1752487345553,0.63345364,121890.0,121880.0,1.09013686]
[1752487346894,0.3105413,121890.0,121880.0,0.96081686]
[1752487347075,0.63345364,121890.0,121880.0,1.09013686]
[1752487347503,0.63345364,121890.0,121880.0,0.96081686]
[1752487347931,0.63345364,121890.0,121880.0,1.09013686]
[1752487348370,1.10131309,121890.0,121880.0,0.96081686]
[1752487348572,0.77840075,121890.0,121880.0,1.09013686]
[1752487348775,1.23063309,121890.0,121880.0,1.09013686]
[1752487348989,0.90772075,121890.0,121880.0,1.09013686]
[1752487349194,0.77840075,121890.0,121880.0,1.09013686]
[1752487349404,0.77840075,121890.0,121880.0,0.96081686]
[1752487349845,0.90772075,121890.0,121880.0,1.09013686]
[1752487350258,0.58480841,121890.0,121880.0,1.09013686]
[1752487350458,0.90772075,121890.0,121880.0,1.09013686]
[1752487350910,0.58480841,121890.0,121880.0,1.09013686]
[1752487351123,0.58480841,121890.0,121880.0,0.96081686]
[1752487351124,0.77840075,121890.0,121880.0,0.96081686]
[1752487351341,0.90772075,121890.0,121880.0,1.09013686]
[1752487351959,0.58480841,121890.0,121880.0,1.09013686]
[1752487352203,0.90772075,121890.0,121880.0,1.09013686]
[1752487352410,0.90780075,121890.0,121880.0,1.09021686]
[1752487352617,0.77840075,121890.0,121880.0,1.09017686]
[1752487352821,0.90776075,121890.0,121880.0,1.09017686]
[1752487353640,1.10131309,121890.0,121880.0,0.96081686]
[1752487353769,1.23067309,121890.0,121880.0,0.96081686]
[1752487353971,1.23063309,121890.0,121880.0,0.96081686]
[1752487356399,1.10131309,121890.0,121880.0,0.96081686]
[1752487356606,1.23063309,121890.0,121880.0,0.96081686]
[1752487357880,0.58480841,121890.0,121880.0,0.96081686]
[1752487358082,1.23063309,121890.0,121880.0,0.96081686]
[1752487358711,1.23123309,121890.0,121880.0,0.96081686]
[1752487359348,1.23119309,121890.0,121880.0,0.96081686]
[1752487359562,1.65687394,121890.0,121880.0,0.96081686]
[1752487360877,1.51241309,121890.0,121880.0,0.96081686]
[1752487361113,1.64233309,121890.0,121880.0,0.96081686]
[1752487361568,1.30237309,121890.0,121880.0,0.96081686]
[1752487363537,1.31880812,121890.0,121880.0,0.55035631]
[1752487363758,0.94398926,121890.0,121880.0,0.45777619]
[1752487363975,1.58981394,121890.0,121880.0,0.21216936]
[1752487364191,1.58997394,121890.0,121880.0,0.01500178]
[1752487364409,1.58997394,121890.0,121880.0,1e-08]
[1752487364632,1.11554133,121880.0,121870.0,0.69465568]
[1752487364857,1.36899098,121880.0,121870.0,0.69465568]
[1752487365071,1.53165543,121880.0,121870.0,0.69465568]
[1752487366460,1.45033809,121880.0,121870.0,0.69465568]
[1752487366676,1.44571312,121880.0,121870.0,0.69465568]
[1752487366889,1.45333257,121880.0,121870.0,0.69465568]
[1752487367324,0.80750788,121880.0,121870.0,0.69465568]
[1752487367542,1.58753256,121880.0,121870.0,0.69465568]
[1752487367982,1.02302522,121880.0,121870.0,0.69465568]
[1752487368200,1.58753256,121880.0,121870.0,0.69465568]
[1752487372580,1.58733256,121880.0,121870.0,0.69465568]
[1752487374951,1.45333256,121880.0,121870.0,0.69465568]
[1752487375169,0.38926703,121880.0,121870.0,0.96233568]
[1752487375391,0.62955993,121880.0,121870.0,1.02483568]
[1752487375828,0.71276451,121880.0,121870.0,1.02483568]
[1752487376047,0.70455993,121880.0,121870.0,1.02483568]
[1752487376295,0.13620418,121880.0,121870.0,1.53647288]
[1752487376516,0.084,121880.0,121870.0,1.53647288]
[1752487376745,0.078,121880.0,121870.0,1.53647288]
[1752487376971,0.081,121880.0,121870.0,1.21356054]
[1752487377195,0.078,121880.0,121870.0,1.21356054]
[1752487377421,0.09440877,121880.0,121870.0,1.19715036]
[1752487377644,0.11281801,121880.0,121870.0,1.20535562]
[1752487377867,0.64162186,121880.0,121870.0,0.75715568]
[1752487378090,0.63341741,121880.0,121870.0,1.19083568]
[1752487378305,0.62521289,121880.0,121870.0,1.19083568]
[1752487378525,0.62521289,121880.0,121870.0,0.89083568]
[1752487378759,0.63156,121880.0,121870.0,0.86023568]
[1752487378983,0.70656,121880.0,121870.0,0.86023568]
[1752487379663,0.70356,121880.0,121870.0,0.89313568]
[1752487379877,0.38064766,121880.0,121870.0,0.89313568]
[1752487380145,0.70356,121880.0,121870.0,0.89313568]
[1752487380602,0.70356,121880.0,121870.0,0.89297568]
[1752487380833,0.70456,121880.0,121870.0,0.89297568]
[1752487381277,0.70356,121880.0,121870.0,0.89297568]
[1752487381502,0.70356,121880.0,121870.0,0.75945568]
[1752487381731,0.38064766,121880.0,121870.0,0.89301568]
[1752487381950,0.38064766,121880.0,121870.0,0.75945568]
[1752487382166,0.38064766,121880.0,121870.0,0.89297568]
[1752487382943,0.22475595,121880.0,121870.0,0.89297568]
[1752487383229,0.71996877,121880.0,121870.0,0.69465568]
[1752487383447,0.71176445,121880.0,121870.0,0.82805568]
[1752487383680,0.71176445,121880.0,121870.0,0.85875568]
[1752487384126,0.71176445,121880.0,121870.0,0.88985568]
[1752487384600,0.38885211,121880.0,121870.0,0.88985568]
[1752487390746,0.38885211,121880.0,121870.0,0.72535568]
[1752487390951,0.38885211,121880.0,121870.0,0.85835568]
[1752487391161,0.71176445,121880.0,121870.0,0.85835568]
[1752487391369,0.38885211,121880.0,121870.0,0.85863568]
[1752487391619,0.71176445,121880.0,121870.0,0.69465568]
[1752487391835,0.71176445,121880.0,121870.0,0.82793568]
[1752487392379,0.38885211,121880.0,121870.0,0.75635568]
[1752487392814,0.38885211,121880.0,121870.0,0.88955568]
[1752487393240,0.38885211,121880.0,121870.0,0.75635568]
[1752487393565,0.38064759,121880.0,121870.0,0.88955568]
[1752487393777,0.38064759,121880.0,121870.0,0.75635568]
[1752487393979,0.38064759,121880.0,121870.0,1.21238802]
[1752487394188,0.37244294,121880.0,121870.0,1.21238802]
[1752487394395,0.37244294,121880.0,121870.0,0.88947568]
[1752487397687,0.29744294,121880.0,121870.0,0.88947568]
[1752487397872,0.37244294,121880.0,121870.0,0.88947568]
[1752487398080,0.37244294,121880.0,121870.0,0.75635568]
[1752487398289,0.37244294,121880.0,121870.0,0.88935568]
[1752487398512,0.37244294,121880.0,121870.0,0.82761568]
[1752487400008,0.37244294,121880.0,121870.0,0.69240798]
[1752487400216,0.37244294,121880.0,121870.0,0.82536798]
[1752487400433,0.69535528,121880.0,121870.0,0.82536798]
[1752487401301,0.69535528,121880.0,121870.0,0.69240798]
[1752487401547,0.72675528,121880.0,121870.0,0.69240798]
[1752487401771,0.75895528,121880.0,121870.0,0.82524798]
[1752487404596,0.75895528,121880.0,121870.0,0.69240798]
[1752487404801,0.75895528,121880.0,121870.0,0.82504798]
[1752487405878,1.08186762,121880.0,121870.0,0.69240798]
[1752487406158,1.21446762,121880.0,121870.0,0.82500798]
[1752487406363,1.46373142,121880.0,121870.0,0.30152658]
[1752487406581,1.43640847,121880.0,121870.0,0.30152658]
[1752487406835,1.83640847,121880.0,121870.0,0.30152658]
[1752487407065,1.96904847,121880.0,121870.0,0.30152658]
[1752487407286,1.56804847,121880.0,121870.0,0.30152658]
[1752487407766,1.57304847,121880.0,121870.0,0.30252658]
[1752487408004,1.57304847,121880.0,121870.0,0.30152658]
[1752487408223,1.58096847,121880.0,121870.0,0.30252658]
[1752487409715,0.31171462,121870.0,121860.0,0.0002]
[1752487409936,0.84853407,121870.0,121860.0,0.0002]
[1752487410387,0.72383186,121870.0,121860.0,0.0002]
[1752487411115,0.85623186,121870.0,121860.0,7.507e-05]
[1752487411362,0.86323186,121870.0,121860.0,0.00107507]
[1752487411612,0.54031952,121870.0,121860.0,0.00107507]
[1752487411858,0.73083186,121870.0,121860.0,0.00107507]
[1752487412086,0.95913986,121870.0,121860.0,0.00107507]
[1752487413211,0.96113986,121870.0,121860.0,0.00107507]
[1752487415459,0.63814752,121870.0,121860.0,0.00107507]
[1752487415635,0.96105986,121870.0,121860.0,0.00107507]
[1752487416180,0.82853986,121870.0,121860.0,0.00107507]
[1752487416400,0.96097986,121870.0,121860.0,0.00107507]
[1752487416601,1.27853986,121870.0,121860.0,0.00107507]
[1752487416818,1.20743986,121870.0,121860.0,0.00107507]
[1752487417071,1.33979986,121870.0,121860.0,0.00107507]
[1752487420017,0.83452752,121870.0,121860.0,0.00107507]
[1752487420228,1.23171986,121870.0,121860.0,0.00107507]
[1752487420443,1.30671986,121870.0,121860.0,0.00107507]
[1752487421123,1.33941986,121870.0,121860.0,0.00107507]
[1752487421345,1.20713986,121870.0,121860.0,0.00107507]
[1752487421632,1.33937986,121870.0,121860.0,0.00107507]
[1752487421855,1.22084672,121870.0,121860.0,0.00107507]
[1752487422039,0.88422752,121870.0,121860.0,0.00107507]
[1752487422290,1.33941986,121870.0,121860.0,0.00107507]
[1752487422524,1.20713986,121870.0,121860.0,0.00107507]
[1752487422750,1.33961986,121870.0,121860.0,0.00107507]
[1752487423500,1.24777683,121870.0,121860.0,0.00107507]
[1752487423720,1.33981986,121870.0,121860.0,0.00107507]
[1752487424168,1.33989986,121870.0,121860.0,0.00107507]
[1752487424420,1.33985986,121870.0,121860.0,0.00107507]
[1752487425324,1.01694752,121870.0,121860.0,0.00107507]
[1752487425559,1.33985986,121870.0,121860.0,0.00107507]
[1752487425743,1.33981986,121870.0,121860.0,0.00107507]
[1752487426024,1.67981986,121870.0,121860.0,0.00107507]
[1752487426481,1.67985986,121870.0,121860.0,0.00107507]
[1752487427633,1.54713986,121870.0,121860.0,0.00107507]
[1752487427859,1.27985986,121870.0,121860.0,0.00107507]
[1752487428124,1.27981986,121870.0,121860.0,0.00107507]
[1752487428671,0.83243278,121870.0,121860.0,0.00107507]
[1752487428942,0.70012478,121870.0,121860.0,0.00107507]
[1752487429168,0.99163712,121870.0,121860.0,0.00107507]
[1752487429442,1.20019712,121870.0,121860.0,0.00107507]
[1752487429647,1.12519712,121870.0,121860.0,0.00107507]
[1752487430127,0.90968478,121870.0,121860.0,0.00107507]
[1752487430347,1.23259712,121870.0,121860.0,0.00107507]
[1752487430816,1.26419712,121870.0,121860.0,0.00107507]
[1752487431509,0.94120478,121870.0,121860.0,0.00107507]
[1752487431731,1.26411712,121870.0,121860.0,0.00107507]
[1752487432407,0.94120478,121870.0,121860.0,0.00107507]
[1752487432619,1.26411712,121870.0,121860.0,0.00107507]
[1752487433039,0.96581078,121870.0,121860.0,0.00107507]
[1752487433262,1.28872312,121870.0,121860.0,0.00107507]
[1752487433943,1.28086533,121870.0,121860.0,0.00107507]
[1752487434583,1.24926533,121870.0,121860.0,0.00107507]
[1752487434787,1.22465933,121870.0,121860.0,0.00107507]
[1752487435420,0.88465933,121870.0,121860.0,0.00107507]
[1752487435864,0.8926655,121870.0,121860.0,0.00107507]
[1752487436314,0.9172715,121870.0,121860.0,0.00107507]
[1752487437193,0.35347916,121870.0,121860.0,0.00107507]
[1752487437448,0.39586672,121870.0,121860.0,0.06427507]
[1752487437671,0.39586699,121870.0,121860.0,0.19767507]
[1752487437910,0.39586699,121870.0,121860.0,0.37000396]
[1752487438135,0.39586699,121870.0,121860.0,0.37821003]
[1752487438344,0.39586699,121870.0,121860.0,0.36179783]
[1752487438557,0.39586699,121870.0,121860.0,0.19767507]
[1752487438819,0.39586699,121870.0,121860.0,0.06427507]
[1752487439038,0.39586699,121870.0,121860.0,0.19767507]
[1752487439284,0.38766173,121870.0,121860.0,0.19759507]
[1752487439755,0.084,121870.0,121860.0,0.70104223]
[1752487439987,0.33913532,121870.0,121860.0,0.70924809]
[1752487440219,0.3309304,121870.0,121860.0,0.37813003]
[1752487440663,0.30631475,121870.0,121860.0,0.19759507]
[1752487440880,0.62922709,121870.0,121860.0,0.06427507]
[1752487441118,0.62922709,121870.0,121860.0,0.03297507]
[1752487441397,0.7105742,121870.0,121860.0,0.00107507]
[1752487441609,0.38766186,121870.0,121860.0,0.13471507]
[1752487441840,0.7105742,121870.0,121860.0,0.13471507]
[1752487442054,0.7105742,121870.0,121860.0,0.00107507]
[1752487442272,0.8758742,121870.0,121860.0,0.00107507]
[1752487442487,0.9072342,121870.0,121860.0,0.00107507]
[1752487443181,0.58432186,121870.0,121860.0,0.00107507]
[1752487443395,0.9072342,121870.0,121860.0,0.00107507]
[1752487444614,0.58432186,121870.0,121860.0,0.00107507]
[1752487444862,0.9072342,121870.0,121860.0,0.00107507]
[1752487445297,0.58432186,121870.0,121860.0,0.00107507]
[1752487445528,0.7736742,121870.0,121860.0,0.00107507]
[1752487445749,0.9071542,121870.0,121860.0,0.00107507]
[1752487445978,0.6349411,121860.0,121850.0,0.99886162]
[1752487446201,1.03308821,121860.0,121850.0,0.99886162]
[1752487446666,1.05793821,121860.0,121850.0,0.99886162]
[1752487447133,0.73502587,121860.0,121850.0,0.99886162]
[1752487447386,1.05893821,121860.0,121850.0,0.99886162]
[1752487447584,1.05893821,121860.0,121850.0,0.99986162]
[1752487447838,1.06493821,121860.0,121850.0,0.99986162]
[1752487450250,1.06657821,121860.0,121850.0,0.99986162]
[1752487450975,0.74366587,121860.0,121850.0,0.99986162]
[1752487451178,0.74148821,121860.0,121850.0,0.99986162]